[Event "GER-ch Youth U16w 2019"]
[Site "Willingen"]
[Date "2019.06.13"]
[Round "7.9"]
[White "Schneider, Katharina"]
[Black "Klemke, Kassandra"]
[Result "0-1"]
[ECO "B90"]
[WhiteElo "1784"]
[BlackElo "1662"]
[Annotator "NA"]
[PlyCount "91"]
[EventDate "2019.06.07"]
[EventType "swiss"]
[EventRounds "9"]
[EventCountry "GER"]
[SourceTitle "playchess.com"]
[Source "ChessBase"]
[SourceQuality "1"]
[TimeControl "40/5400+30:1800+30"]

1. e4 {[%emt 0:00:00]} c5 {[%emt 0:00:00]} 2. Nf3 {[%emt 0:00:00]} d6 {[%emt 0:00:00]} 3. d4 {[%emt 0:00:00]} cxd4 {[%emt 0:00:00]} 4. Nxd4 {[%emt 0:00:00]} Nf6 {[%emt 0:00:00]} 5. Nc3 {[%emt 0:00:00]} a6 {[%emt 0:00:00]} 6. f3 {[%emt 0:00:09]} e6 {[%emt 0:00:06]} 7. Be3 {[%emt 0:00:20]} b5 {[%emt 0:00:19]} 8. Qd2 {[%emt 0:00:26]} Nfd7 {[%emt 0:01:20]} 9. O-O-O {[%emt 0:02:59]} Nb6 {[%emt 0:00:25]} 10. g4 {[%emt 0:03:43]} N8d7 {[%emt 0:00:52]} 11. h4 {[%emt 0:07:01]} Ne5 {[%emt 0:02:10]} 12. b3 {[%emt 0:06:14]} Bb7 {[%emt 0:03:22]} 13. g5 {[%emt 0:08:23]} Rc8 {[%emt 0:03:44]} 14. f4 {[%emt 0:11:48]} Ned7 {[%emt 0:09:56]} 15. Bg2 {[%emt 0:16:34]} Qc7 {[%emt 0:06:21]} 16. Nce2 {[%emt 0:04:21]} d5 {[%emt 0:02:36]} 17. e5 {[%emt 0:06:00]} Be7 {[%emt 0:06:21]} 18. h5 {[%emt 0:03:15]} Nc5 {[%emt 0:11:12]} 19. Rdf1 {[%emt 0:08:23]} Ne4 {[%emt 0:04:29]} 20. Bxe4 {[%emt 0:00:50]} dxe4 {[%emt 0:00:07]} 21. g6 {[%emt 0:00:58]} Nd5 {[%emt 0:18:21]} 22. gxf7+ {[%emt 0:04:34]} Kxf7 {[%emt 0:00:07]} 23. Bg1 {[%emt 0:00:32]} Bb4 {[%emt 0:03:07]} 24. Qd1 {[%emt 0:00:18]} Nc3 {[%emt 0:01:45]} 25. Nxe6 {[%emt 0:03:52]} Ba3+ {[%emt 0:05:39]} 26. Kd2 {[%emt 0:02:05]} Qd7+ {[%emt 0:00:24]} 27. N6d4 {[%emt 0:02:12]} Nxd1 {[%emt 0:13:40]} 28. e6+ {[%emt 0:00:33]} Qxe6 {[%emt 0:00:10]} 29. Nxe6 {[%emt 0:00:08]} e3+ {[%emt 0:00:32]} 30. Bxe3 {[%emt 0:03:49]} Nxe3 {[%emt 0:00:15]} 31. Ng5+ {[%emt 0:00:34]} Ke7 {[%emt 0:01:08]} 32. Kxe3 {[%emt 0:01:27]} Bxh1 {[%emt 0:00:22]} 33. Rxh1 {[%emt 0:00:04]} Rxc2 {[%emt 0:00:30]} 34. Nd4 {[%emt 0:00:44]} Rc5 {[%emt 0:05:18]} 35. Nge6 {[%emt 0:02:21]} Rd5 {[%emt 0:01:36]} 36. Nxg7 {[%emt 0:01:00]} Bc5 {[%emt 0:00:33]} 37. Nge6 {[%emt 0:00:36]} Bxd4+ {[%emt 0:00:18]} 38. Nxd4 {[%emt 0:00:05]} Re8 {[%emt 0:01:00]} 39. Nc6+ {[%emt 0:00:37]} Kf6+ {[%emt 0:00:39]} 40. Ne5 {[%emt 0:00:13]} Red8 {[%emt 0:00:14]} 41. a3 {[%emt 0:30:57]} Rc5 {[%emt 0:02:30]} 42. Rb1 {[%emt 0:00:00]} Kf5 {[%emt 0:01:00]} 43. Ke2 {[%emt 0:00:00]} Rc2+ {[%emt 0:00:59]} 44. Ke3 {[%emt 0:00:00]} Rc3+ {[%emt 0:00:15]} 45. Ke2 {[%emt 0:00:00]} Kxf4 {[%emt 0:00:47]} 46. Nf7 {[%emt 0:00:00] normal} 0-1

[Event "GER-ch Youth U16w 2019"]
[Site "Willingen"]
[Date "2019.06.13"]
[Round "7.10"]
[White "Jacoby, Angelina"]
[Black "Zell, Hannah"]
[Result "1/2-1/2"]
[ECO "D02"]
[WhiteElo "1412"]
[BlackElo "1473"]
[Annotator "NA"]
[PlyCount "73"]
[EventDate "2019.06.07"]
[EventType "swiss"]
[EventRounds "9"]
[EventCountry "GER"]
[SourceTitle "playchess.com"]
[Source "ChessBase"]
[SourceQuality "1"]
[TimeControl "40/5400+30:1800+30"]

1. d4 {[%emt 0:00:00]} Nf6 {[%emt 0:00:00]} 2. Nf3 {[%emt 0:00:00]} d5 {[%emt 0:00:00]} 3. Bf4 {[%emt 0:00:00]} c5 {[%emt 0:00:00]} 4. e3 {[%emt 0:00:14]} e6 {[%emt 0:00:01]} 5. Nbd2 {[%emt 0:02:31]} Bd6 {[%emt 0:00:12]} 6. Bg3 {[%emt 0:00:09]} Bxg3 {[%emt 0:00:28]} 7. hxg3 {[%emt 0:00:06]} cxd4 {[%emt 0:00:29]} 8. exd4 {[%emt 0:00:23]} Nc6 {[%emt 0:02:08]} 9. c3 {[%emt 0:00:24]} Bd7 {[%emt 0:03:56]} 10. Bd3 {[%emt 0:00:10]} h6 {[%emt 0:03:21]} 11. Qe2 {[%emt 0:00:52]} Qc7 {[%emt 0:14:59]} 12. Ne5 {[%emt 0:05:24]} Nxe5 {[%emt 0:01:27]} 13. dxe5 {[%emt 0:00:12]} Ng8 {[%emt 0:07:07]} 14. Nf3 {[%emt 0:01:27]} Ne7 {[%emt 0:03:51]} 15. g4 {[%emt 0:03:28]} O-O-O {[%emt 0:03:45]} 16. Nd4 {[%emt 0:02:08]} Nc6 {[%emt 0:04:44]} 17. O-O {[%emt 0:07:54]} Nxe5 {[%emt 0:05:43]} 18. Bb5 {[%emt 0:02:02]} a6 {[%emt 0:01:18]} 19. Bxd7+ {[%emt 0:01:21]} Rxd7 {[%emt 0:02:27]} 20. b4 {[%emt 0:03:40]} Nc4 {[%emt 0:01:52]} 21. a4 {[%emt 0:00:41]} b6 {[%emt 0:04:43]} 22. Nb3 {[%emt 0:07:44]} Kd8 {[%emt 0:06:57]} 23. a5 {[%emt 0:02:42]} b5 {[%emt 0:01:04]} 24. Nc5 {[%emt 0:00:17]} Rd6 {[%emt 0:00:26]} 25. Rad1 {[%emt 0:01:35]} Re8 {[%emt 0:07:13]} 26. Qf3 {[%emt 0:06:22]} Ne5 {[%emt 0:04:49]} 27. Qg3 {[%emt 0:08:33]} f6 {[%emt 0:00:42]} 28. Rfe1 {[%emt 0:02:47]} Kc8 {[%emt 0:01:31]} 29. f4 {[%emt 0:06:18]} Nd7 {[%emt 0:01:06]} 30. Nxd7 {[%emt 0:00:59]} Qxd7 {[%emt 0:00:47]} 31. f5 {[%emt 0:02:08]} e5 {[%emt 0:02:10]} 32. Re2 {[%emt 0:02:34]} Kb7 {[%emt 0:01:34]} 33. Red2 {[%emt 0:02:20]} Rd8 {[%emt 0:03:44]} 34. Qe3 {[%emt 0:01:51]} Qc6 {[%emt 0:01:12]} 35. Rd3 {[%emt 0:06:48]} Qc4 {[%emt 0:01:59]} 36. Rxd5 {[%emt 0:12:34] normal} Rxd5 {[%emt 0:04:50]} 37. Qb6+ {[%emt 0:00:06] normal} 1/2-1/2

[Event "GER-ch Youth U16w 2019"]
[Site "Willingen"]
[Date "2019.06.13"]
[Round "7.12"]
[White "Huppert, Anna"]
[Black "Dietz, Helena"]
[Result "1-0"]
[ECO "B09"]
[WhiteElo "1515"]
[BlackElo "1534"]
[Annotator "NA"]
[PlyCount "55"]
[EventDate "2019.06.07"]
[EventType "swiss"]
[EventRounds "9"]
[EventCountry "GER"]
[SourceTitle "playchess.com"]
[Source "ChessBase"]
[SourceQuality "1"]
[TimeControl "40/5400+30:1800+30"]

1. e4 {[%emt 0:00:00]} d6 {[%emt 0:00:00]} 2. d4 {[%emt 0:00:00]} Nf6 {[%emt 0:00:00]} 3. Nc3 {[%emt 0:00:00]} g6 {[%emt 0:00:00]} 4. f4 {[%emt 0:00:00]} Bg7 {[%emt 0:00:14]} 5. Nf3 {[%emt 0:00:13]} O-O {[%emt 0:00:32]} 6. Bd3 {[%emt 0:00:24]} c5 {[%emt 0:00:42]} 7. e5 {[%emt 0:03:20]} dxe5 {[%emt 0:00:23]} 8. dxe5 {[%emt 0:00:55]} Nd5 {[%emt 0:00:24]} 9. Bd2 {[%emt 0:03:22]} Nc6 {[%emt 0:01:49]} 10. O-O {[%emt 0:02:01]} b6 {[%emt 0:04:59]} 11. Qe1 {[%emt 0:08:13]} Bb7 {[%emt 0:07:07]} 12. f5 {[%emt 0:06:44]} Ndb4 {[%emt 0:04:41]} 13. Be4 {[%emt 0:08:22]} Rb8 {[%emt 0:34:45]} 14. a3 {[%emt 0:04:22]} Na6 {[%emt 0:04:46]} 15. e6 {[%emt 0:08:27]} Nd4 {[%emt 0:09:33]} 16. exf7+ {[%emt 0:03:45]} Rxf7 {[%emt 0:01:01]} 17. fxg6 {[%emt 0:05:14]} hxg6 {[%emt 0:01:15]} 18. Rd1 {[%emt 0:07:52]} Nxf3+ {[%emt 0:04:59]} 19. Rxf3 {[%emt 0:05:51]} Rxf3 {[%emt 0:02:09]} 20. Bxf3 {[%emt 0:05:21]} Bxf3 {[%emt 0:03:13]} 21. Qe6+ {[%emt 0:01:32]} Kh7 {[%emt 0:02:04]} 22. gxf3 {[%emt 0:02:03]} Nc7 {[%emt 0:01:57]} 23. Qh3+ {[%emt 0:02:04]} Kg8 {[%emt 0:00:12]} 24. Bf4 {[%emt 0:02:23]} Qc8 {[%emt 0:02:42]} 25. Qg3 {[%emt 0:01:05]} Rb7 {[%emt 0:01:43]} 26. Qxg6 {[%emt 0:01:47]} Qf8 {[%emt 0:01:00]} 27. Be5 {[%emt 0:03:38]} Na6 {[%emt 0:03:27]} 28. Rd8 {[%emt 0:01:03] normal} 1-0

[Event "GER-ch Youth U16w 2019"]
[Site "Willingen"]
[Date "2019.06.13"]
[Round "7.13"]
[White "Genova, Magdalina"]
[Black "Peschel, Julia"]
[Result "1/2-1/2"]
[ECO "D35"]
[WhiteElo "1421"]
[BlackElo "1275"]
[Annotator "NA RC"]
[PlyCount "101"]
[EventDate "2019.06.07"]
[EventType "swiss"]
[EventRounds "9"]
[EventCountry "GER"]
[SourceTitle "playchess.com"]
[Source "ChessBase"]
[SourceQuality "1"]
[TimeControl "40/5400+30:1800+30"]

1. c4 {[%emt 0:00:00]} e6 {[%emt 0:00:00]} 2. Nc3 {[%emt 0:00:00]} d5 {[%emt 0:00:00]} 3. cxd5 {[%emt 0:00:00]} exd5 {[%emt 0:00:01]} 4. d4 {[%emt 0:01:08]} Nf6 {[%emt 0:00:30]} 5. Bg5 {[%emt 0:00:20]} Be7 {[%emt 0:03:38]} 6. Nf3 {[%emt 0:04:00]} c6 {[%emt 0:00:40]} 7. e3 {[%emt 0:04:27]} h6 {[%emt 0:03:03]} 8. Bh4 {[%emt 0:03:02]} Bf5 {[%emt 0:04:07]} 9. Bd3 {[%emt 0:08:23]} Bxd3 {[%emt 0:08:56]} 10. Qxd3 {[%emt 0:01:45]} Nbd7 {[%emt 0:00:53]} 11. O-O {[%emt 0:00:56]} O-O {[%emt 0:01:21]} 12. Rab1 {[%emt 0:01:46]} Re8 {[%emt 0:16:04]} 13. b4 {[%emt 0:03:29]} Rc8 {[%emt 0:01:24]} 14. Rfc1 {[%emt 0:09:17]} a6 {[%emt 0:15:26]} 15. a4 {[%emt 0:02:04]} Rb8 {[%emt 0:11:32]} 16. b5 {[%emt 0:16:15]} axb5 {[%emt 0:01:12]} 17. axb5 {[%emt 0:00:51]} c5 {[%emt 0:01:42]} 18. dxc5 {[%emt 0:06:39]} Nxc5 {[%emt 0:00:33]} 19. Qd4 {[%emt 0:26:37]} Ne6 {[%emt 0:12:25]} 20. Qd3 {[%emt 0:01:36]} Nc5 {[%emt 0:03:20]} 21. Qd4 {[%emt 0:00:42]} Ne6 {[%emt 0:00:04]} 22. Qd3 {[%emt 0:00:50]} g5 {[%emt 0:00:14]} 23. Bg3 {[%emt 0:00:18]} Rc8 {[%emt 0:00:05]} 24. Ne2 {[%emt 0:00:48]} Rxc1+ {[%emt 0:02:32]} 25. Rxc1 {[%emt 0:00:06]} Bd6 {[%emt 0:00:18]} 26. Ned4 {[%emt 0:03:08]} Bxg3 {[%emt 0:04:28]} 27. hxg3 {[%emt 0:00:05]} Nxd4 {[%emt 0:00:19]} 28. Nxd4 {[%emt 0:00:37]} Qd7 {[%emt 0:02:17]} 29. Nf5 {[%emt 0:01:36]} Ne4 {[%emt 0:00:34]} 30. Nd4 {[%emt 0:01:00]} Rc8 {[%emt 0:01:05]} 31. Rxc8+ {[%emt 0:01:18]} Qxc8 {[%emt 0:00:01]} 32. Qc2 {[%emt 0:00:55]} Qa8 {[%emt 0:01:11]} 33. Nf5 {[%emt 0:01:10]} Qa1+ {[%emt 0:01:43]} 34. Kh2 {[%emt 0:00:09]} Qf6 {[%emt 0:03:37]} 35. g4 {[%emt 0:00:40]} h5 {[%emt 0:00:16]} 36. f3 {[%emt 0:00:18]} Nd6 {[%emt 0:00:04]} 37. Nxd6 {[%emt 0:01:13]} Qxd6+ 38. Kh3 {[%emt 0:00:27]} h4 {[%emt 0:01:09]} 39. Qf2 {[%emt 0:00:26]} Qc7 {[%emt 0:00:50]} 40. f4 {[%emt 0:00:10]} Qc1 {[%emt 0:00:45]} 41. g3 {[%emt 0:30:32]} hxg3 {[%emt 0:04:19]} 42. Kxg3 {[%emt 0:00:00]} f6 {[%emt 0:01:01]} 43. Qe2 {[%emt 0:00:00]} Qb1 {[%emt 0:03:17]} 44. f5 {[%emt 0:00:00]} Qe4 {[%emt 0:02:14]} 45. Qd2 {[%emt 0:00:00]} Kf7 {[%emt 0:06:09]} 46. Qc3 {[%emt 0:00:00]} Qe7 {[%emt 0:01:30]} 47. Qb3 {[%emt 0:00:00]} Qd6+ {[%emt 0:01:02]} 48. Kh3 {[%emt 0:00:00]} Ke7 {[%emt 0:00:36]} 49. Qd3 {[%emt 0:00:00]} Qc5 {[%emt 0:01:23]} 50. Kg3 {[%emt 0:00:00] normal} d4 51. e4 {normal} 1/2-1/2

[Event "GER-ch Youth U16w 2019"]
[Site "Willingen"]
[Date "2019.06.14"]
[Round "8.2"]
[White "Berelowitsch, Dana"]
[Black "Fock, Amina"]
[Result "1/2-1/2"]
[ECO "B93"]
[WhiteElo "1753"]
[BlackElo "1723"]
[Annotator "NA"]
[PlyCount "81"]
[EventDate "2019.06.07"]
[EventType "swiss"]
[EventRounds "9"]
[EventCountry "GER"]
[SourceTitle "playchess.com"]
[Source "ChessBase"]
[SourceQuality "1"]
[TimeControl "40/5400+30:1800+30"]

1. e4 {[%emt 0:00:00]} c5 {[%emt 0:00:00]} 2. Nf3 {[%emt 0:00:00]} d6 {[%emt 0:00:00]} 3. d4 {[%emt 0:00:00]} cxd4 {[%emt 0:00:00]} 4. Nxd4 {[%emt 0:00:00]} Nf6 {[%emt 0:00:00]} 5. Nc3 {[%emt 0:00:00]} a6 {[%emt 0:00:00]} 6. f4 {[%emt 0:00:05]} Qc7 {[%emt 0:00:44]} 7. Nf3 {[%emt 0:00:49]} Nbd7 {[%emt 0:03:15]} 8. Bd3 {[%emt 0:00:36]} g6 {[%emt 0:01:30]} 9. O-O {[%emt 0:00:25]} Bg7 {[%emt 0:00:24]} 10. Kh1 {[%emt 0:01:02]} b5 {[%emt 0:06:21]} 11. a3 {[%emt 0:01:23]} Bb7 {[%emt 0:01:13]} 12. Qe1 {[%emt 0:00:50]} Nc5 {[%emt 0:12:05]} 13. e5 {[%emt 0:06:19]} dxe5 {[%emt 0:06:46]} 14. fxe5 {[%emt 0:02:26]} Nfd7 {[%emt 0:02:06]} 15. Bg5 {[%emt 0:07:44]} Nxe5 {[%emt 0:03:32]} 16. Qh4 {[%emt 0:07:31]} Nxf3 {[%emt 0:03:28]} 17. gxf3 {[%emt 0:00:57]} Ne6 {[%emt 0:01:30]} 18. Bh6 {[%emt 0:14:23]} Bxc3 {[%emt 0:07:57]} 19. bxc3 {[%emt 0:00:13]} Qxc3 {[%emt 0:00:33]} 20. a4 {[%emt 0:13:58]} Bxf3+ {[%emt 0:06:53]} 21. Kg1 {[%emt 0:09:37]} Qc5+ {[%emt 0:16:54]} 22. Rf2 {[%emt 0:02:19]} Bc6 {[%emt 0:01:37]} 23. axb5 {[%emt 0:03:23]} Bxb5 {[%emt 0:01:03]} 24. Bxb5+ {[%emt 0:00:55]} Qxb5 {[%emt 0:00:10]} 25. Raf1 {[%emt 0:00:34]} Qb6 {[%emt 0:09:20]} 26. Qe4 {[%emt 0:01:14]} O-O-O {[%emt 0:01:54]} 27. Be3 {[%emt 0:03:01]} Qb7 {[%emt 0:05:06]} 28. Qc4+ {[%emt 0:01:00]} Kb8 {[%emt 0:02:14]} 29. Rxf7 {[%emt 0:01:42]} Rd6 {[%emt 0:01:36]} 30. Qa2 {[%emt 0:03:27]} Kc8 {[%emt 0:01:31]} 31. Rb1 {[%emt 0:03:43]} Qc7 {[%emt 0:01:25]} 32. Qb2 {[%emt 0:03:16]} Rhd8 {[%emt 0:01:20]} 33. Rxh7 {[%emt 0:03:42]} Rd1+ {[%emt 0:00:51]} 34. Rxd1 {[%emt 0:00:29]} Rxd1+ {[%emt 0:00:04]} 35. Kf2 {[%emt 0:01:14]} Nf8 {[%emt 0:01:16]} 36. Rh8 {[%emt 0:01:38]} Rd8 {[%emt 0:00:45]} 37. Qa2 {[%emt 0:01:02]} Qc6 {[%emt 0:00:37]} 38. Rh4 {[%emt 0:01:38]} Kd7 {[%emt 0:01:18]} 39. Rd4+ {[%emt 0:02:19]} Ke8 {[%emt 0:00:08]} 40. Rf4 {[%emt 0:00:36]} Ne6 {[%emt 0:01:40] normal} 41. Ra4 {[%emt 0:34:01] normal} 1/2-1/2

[Event "GER-ch Youth U16w 2019"]
[Site "Willingen"]
[Date "2019.06.14"]
[Round "8.3"]
[White "Rothenberg, Nina"]
[Black "Glinzner, Alva"]
[Result "1-0"]
[ECO "B23"]
[WhiteElo "1653"]
[BlackElo "1833"]
[Annotator "NA"]
[PlyCount "105"]
[EventDate "2019.06.07"]
[EventType "swiss"]
[EventRounds "9"]
[EventCountry "GER"]
[SourceTitle "playchess.com"]
[Source "ChessBase"]
[SourceQuality "1"]
[TimeControl "40/5400+30:1800+30"]

1. e4 {[%emt 0:00:00]} c5 {[%emt 0:00:00]} 2. Nc3 {[%emt 0:00:00]} g6 {[%emt 0:00:00]} 3. g3 {[%emt 0:00:00]} Bg7 {[%emt 0:00:03]} 4. Bg2 {[%emt 0:00:00]} Nc6 {[%emt 0:00:07]} 5. d3 {[%emt 0:00:00]} e6 {[%emt 0:00:14]} 6. Be3 {[%emt 0:00:04]} d6 {[%emt 0:00:08]} 7. Qd2 {[%emt 0:00:05]} Nge7 {[%emt 0:00:23]} 8. Bh6 {[%emt 0:00:22]} O-O {[%emt 0:00:28]} 9. h4 {[%emt 0:00:34]} f6 {[%emt 0:04:24]} 10. Bxg7 {[%emt 0:01:31]} Kxg7 {[%emt 0:00:04]} 11. h5 {[%emt 0:03:19]} Rg8 {[%emt 0:02:04]} 12. hxg6 {[%emt 0:03:58]} hxg6 {[%emt 0:00:05]} 13. Nf3 {[%emt 0:02:07]} Rb8 {[%emt 0:02:12]} 14. O-O-O {[%emt 0:04:06]} b5 {[%emt 0:00:31]} 15. Rh6 {[%emt 0:02:18]} b4 {[%emt 0:04:57]} 16. Ne2 {[%emt 0:01:27]} e5 {[%emt 0:07:09]} 17. Rdh1 {[%emt 0:04:14]} Kf8 {[%emt 0:03:17]} 18. Rh8 {[%emt 0:04:32]} Ke8 {[%emt 0:05:38]} 19. Qh6 {[%emt 0:10:50]} Kd7 {[%emt 0:02:29]} 20. Rh7 {[%emt 0:03:00]} Kc7 {[%emt 0:05:43]} 21. Nd2 {[%emt 0:07:49]} a5 22. Kb1 Kb7 {[%emt 0:18:20]} 23. Nc4 {[%emt 0:02:53]} Ka6 {[%emt 0:01:10]} 24. Ne3 {[%emt 0:03:43]} a4 {[%emt 0:17:40]} 25. Nd5 {[%emt 0:03:55]} Nxd5 {[%emt 0:00:43]} 26. exd5 {[%emt 0:00:07]} Ne7 {[%emt 0:02:08]} 27. Qh4 {[%emt 0:03:35]} Nf5 {[%emt 0:02:50]} 28. Qe4 {[%emt 0:02:46]} Bb7 {[%emt 0:04:31]} 29. a3 {[%emt 0:02:54]} Qb6 {[%emt 0:08:21]} 30. c3 {[%emt 0:04:42]} Nd4 {[%emt 0:08:14]} 31. axb4 {[%emt 0:04:01]} Nb3 {[%emt 0:00:40]} 32. Qc4+ {[%emt 0:05:12]} Ka7 {[%emt 0:00:36]} 33. bxc5 {[%emt 0:00:51]} Nd2+ {[%emt 0:00:24]} 34. Kc2 {[%emt 0:00:04]} Nxc4 {[%emt 0:00:28]} 35. cxb6+ {[%emt 0:00:01]} Nxb6 {[%emt 0:00:06]} 36. c4 {[%emt 0:01:42]} Ka6 {[%emt 0:00:12]} 37. Nc3 {[%emt 0:00:56]} Ka5 {[%emt 0:00:29]} 38. Ne4 {[%emt 0:01:22]} Nxd5 {[%emt 0:01:11]} 39. cxd5 Bxd5 {[%emt 0:00:05]} 40. R1h2 {[%emt 0:02:26]} Bb3+ {[%emt 0:00:30]} 41. Kb1 {[%emt 0:30:38]} Rbd8 {[%emt 0:16:01]} 42. Nd2 {[%emt 0:00:00]} d5 {[%emt 0:01:36]} 43. Nxb3+ {[%emt 0:00:00]} axb3 {[%emt 0:00:03]} 44. Ra7+ {[%emt 0:00:00]} Kb5 {[%emt 0:01:37]} 45. Rhh7 {[%emt 0:00:00]} e4 {[%emt 0:03:54]} 46. Rhb7+ {[%emt 0:00:00]} Kc5 {[%emt 0:02:14]} 47. dxe4 {[%emt 0:00:00]} dxe4 {[%emt 0:01:27]} 48. Rxb3 {[%emt 0:00:00]} f5 {[%emt 0:00:11]} 49. Rc7+ {[%emt 0:00:00]} Kd6 {[%emt 0:00:47]} 50. Rc1 {[%emt 0:00:00]} Ke5 {[%emt 0:02:13]} 51. Rb5+ {[%emt 0:00:00]} Kd4 {[%emt 0:01:20]} 52. Rd1+ {[%emt 0:00:00]} Kc4 {[%emt 0:00:08]} 53. Bf1+ {[%emt 0:00:00] normal} 1-0

[Event "GER-ch Youth U16w 2019"]
[Site "Willingen"]
[Date "2019.06.14"]
[Round "8.4"]
[White "Ziegenfuss, Larissa"]
[Black "Muedder, Melanie"]
[Result "0-1"]
[ECO "B32"]
[WhiteElo "1771"]
[BlackElo "1912"]
[Annotator "NA"]
[PlyCount "66"]
[EventDate "2019.06.07"]
[EventType "swiss"]
[EventRounds "9"]
[EventCountry "GER"]
[SourceTitle "playchess.com"]
[Source "ChessBase"]
[SourceQuality "1"]
[TimeControl "40/5400+30:1800+30"]

1. e4 {[%emt 0:00:00]} c5 {[%emt 0:00:00]} 2. Nf3 {[%emt 0:00:00]} Nc6 {[%emt 0:00:00]} 3. d4 {[%emt 0:00:00]} cxd4 {[%emt 0:00:00]} 4. Nxd4 {[%emt 0:00:00]} e5 {[%emt 0:00:05]} 5. Nb5 {[%emt 0:00:39]} d6 {[%emt 0:00:13]} 6. c4 {[%emt 0:00:16]} Be7 {[%emt 0:00:10]} 7. N5c3 {[%emt 0:00:34]} Be6 {[%emt 0:00:23]} 8. Bd3 {[%emt 0:01:13]} Bg5 {[%emt 0:00:33]} 9. Na3 {[%emt 0:03:38]} Bxc1 {[%emt 0:04:38]} 10. Rxc1 {[%emt 0:01:17]} a6 {[%emt 0:06:18]} 11. O-O {[%emt 0:03:33]} Nge7 {[%emt 0:04:59]} 12. Nc2 {[%emt 0:10:55]} O-O {[%emt 0:03:06]} 13. Ne3 {[%emt 0:05:04]} Ng6 {[%emt 0:04:12]} 14. Bb1 {[%emt 0:08:35]} Nf4 {[%emt 0:09:12]} 15. Ncd5 {[%emt 0:17:11]} Bxd5 {[%emt 0:08:45]} 16. Nxd5 {[%emt 0:01:06]} Nxd5 {[%emt 0:02:29]} 17. cxd5 {[%emt 0:09:50]} Nd4 {[%emt 0:01:22]} 18. Qd2 {[%emt 0:01:40]} Rc8 {[%emt 0:07:26]} 19. Kh1 {[%emt 0:03:07]} Qh4 {[%emt 0:04:12]} 20. f3 {[%emt 0:05:45]} h6 {[%emt 0:07:44]} 21. Bd3 {[%emt 0:09:09]} Kh7 {[%emt 0:04:15]} 22. Rc3 {[%emt 0:02:00]} Rc5 {[%emt 0:07:03]} 23. b4 {[%emt 0:05:50]} Rxc3 {[%emt 0:00:59]} 24. Qxc3 {[%emt 0:00:05]} Qf4 {[%emt 0:06:23]} 25. Qc1 {[%emt 0:01:09]} Qf6 {[%emt 0:02:33]} 26. Qc7 {[%emt 0:01:02]} b5 {[%emt 0:02:56]} 27. Qb7 {[%emt 0:01:26]} Qf4 {[%emt 0:03:55]} 28. Qxa6 {[%emt 0:01:01]} Rb8 {[%emt 0:02:20]} 29. Qxd6 {[%emt 0:01:48]} Ra8 {[%emt 0:03:53]} 30. Bb1 {[%emt 0:02:09]} Rc8 {[%emt 0:00:34]} 31. g3 {[%emt 0:01:53]} Qe3 {[%emt 0:02:19]} 32. f4 {[%emt 0:01:48]} Rc1 {[%emt 0:01:01]} 33. Rxc1 {[%emt 0:01:05]} Qf3+ {[%emt 0:00:21] normal} 0-1

[Event "GER-ch Youth U16w 2019"]
[Site "Willingen"]
[Date "2019.06.14"]
[Round "8.5"]
[White "Bui, Ngoc Han Julia"]
[Black "Khamenya, Vitalia"]
[Result "1/2-1/2"]
[ECO "C77"]
[WhiteElo "1973"]
[BlackElo "1877"]
[Annotator "NA"]
[PlyCount "66"]
[EventDate "2019.06.07"]
[EventType "swiss"]
[EventRounds "9"]
[EventCountry "GER"]
[SourceTitle "playchess.com"]
[Source "ChessBase"]
[SourceQuality "1"]
[TimeControl "40/5400+30:1800+30"]

1. e4 {[%emt 0:00:00]} e5 {[%emt 0:00:00]} 2. Nf3 {[%emt 0:00:00]} Nc6 {[%emt 0:00:00]} 3. Bb5 {[%emt 0:00:00]} a6 {[%emt 0:00:00]} 4. Ba4 {[%emt 0:00:00]} Nf6 {[%emt 0:00:00]} 5. d3 {[%emt 0:00:02]} b5 {[%emt 0:00:00]} 6. Bb3 {[%emt 0:00:06]} Bc5 {[%emt 0:00:00]} 7. O-O {[%emt 0:01:00]} d6 {[%emt 0:00:43]} 8. a4 {[%emt 0:00:37]} Rb8 {[%emt 0:10:43]} 9. axb5 {[%emt 0:03:31]} axb5 {[%emt 0:00:10]} 10. c3 {[%emt 0:03:38]} h6 {[%emt 0:01:28]} 11. Re1 {[%emt 0:05:46]} O-O {[%emt 0:00:18]} 12. Nbd2 {[%emt 0:01:53]} Bb6 {[%emt 0:05:42]} 13. Nf1 {[%emt 0:01:05]} Ne7 {[%emt 0:01:05]} 14. Be3 {[%emt 0:04:14]} c5 {[%emt 0:03:27]} 15. Bc2 {[%emt 0:08:50]} Ng6 {[%emt 0:02:53]} 16. Ng3 {[%emt 0:10:33]} Qc7 {[%emt 0:18:10]} 17. d4 {[%emt 0:14:50]} c4 {[%emt 0:01:36]} 18. Nf5 {[%emt 0:03:57]} Rd8 {[%emt 0:13:20]} 19. Qe2 {[%emt 0:13:43]} Ba5 {[%emt 0:06:55]} 20. Nd2 {[%emt 0:16:03]} b4 {[%emt 0:09:20]} 21. Qxc4 {[%emt 0:00:17]} bxc3 {[%emt 0:01:35]} 22. Qxc7 {[%emt 0:00:49]} Bxc7 {[%emt 0:00:01]} 23. bxc3 {[%emt 0:00:10]} Ng4 {[%emt 0:02:24]} 24. Nc4 {[%emt 0:02:50]} Be6 {[%emt 0:07:26]} 25. Bd3 {[%emt 0:02:47]} d5 {[%emt 0:05:51]} 26. exd5 {[%emt 0:00:22]} Bxd5 {[%emt 0:00:30]} 27. Nxe5 {[%emt 0:01:10]} N4xe5 {[%emt 0:01:15]} 28. dxe5 {[%emt 0:00:02]} Bxe5 {[%emt 0:00:26]} 29. Bd4 {[%emt 0:00:58]} Bxd4 {[%emt 0:01:34]} 30. Nxd4 {[%emt 0:00:08]} Nf4 {[%emt 0:00:36]} 31. Be4 {[%emt 0:00:27]} Rbc8 {[%emt 0:01:33]} 32. g3 {[%emt 0:02:44]} Bxe4 {[%emt 0:02:06]} 33. Rxe4 {[%emt 0:00:26]} Nd5 {[%emt 0:00:37] normal} 1/2-1/2